[Event "Kadettallsvenskan 2018, sodra kvalet"]
[Site "Vegagatan 20, Gothenburg, Sweden"]
[Date "2018.04.14"]
[Round "3.1"]
[White "Nilsson, Kajsa"]
[Black "Rasti, Arvin"]
[Result "0-1"]
[TimeControl "45 minutes for the whole game + 10 seconds per move from move one."]
[WhiteFideId "1725157"]
[BlackFideId "1741160"]
[WhiteElo "1693"]
[BlackElo "1920"]

1. e4 {[%clk 00:45:13]} {[%emt 00:00:08]} c5 {[%clk 00:45:12]} {[%emt
00:00:07]} 2. c3 {[%clk 00:45:13]} {[%emt 00:00:10]} Nf6 {[%clk 00:45:18]}
{[%emt 00:00:04]} 3. e5 {[%clk 00:45:15]} {[%emt 00:00:08]} Nd5 {[%clk
00:45:24]} {[%emt 00:00:03]} 4. d4 {[%clk 00:45:17]} {[%emt 00:00:09]} cxd4
{[%clk 00:45:28]} {[%emt 00:00:06]} 5. Nf3 {[%clk 00:45:19]} {[%emt 00:00:07]}
Nc6 {[%clk 00:45:34]} {[%emt 00:00:03]} 6. cxd4 {[%clk 00:45:09]} {[%emt
00:00:21]} d6 {[%clk 00:44:45]} {[%emt 00:00:59]} 7. Bc4 {[%clk 00:44:41]}
{[%emt 00:00:38]} Nb6 {[%clk 00:44:46]} {[%emt 00:00:09]} 8. Bb3 {[%clk
00:44:41]} {[%emt 00:00:10]} e6 {[%clk 00:44:20]} {[%emt 00:00:36]} 9. O-O
{[%clk 00:44:14]} {[%emt 00:00:37]} Be7 {[%clk 00:43:09]} {[%emt 00:01:21]} 10.
Nc3 {[%clk 00:42:09]} {[%emt 00:02:16]} O-O {[%clk 00:42:14]} {[%emt 00:01:05]}
11. Bf4 {[%clk 00:41:19]} {[%emt 00:01:00]} Nb4 {[%clk 00:40:41]} {[%emt
00:01:43]} 12. Rc1 {[%clk 00:38:14]} {[%emt 00:03:15]} dxe5 {[%clk 00:37:04]}
{[%emt 00:03:47]} 13. dxe5 {[%clk 00:37:56]} {[%emt 00:00:29]} Nd3 {[%clk
00:36:57]} {[%emt 00:00:17]} 14. Bg3 {[%clk 00:36:38]} {[%emt 00:01:27]} Nxc1
{[%clk 00:36:35]} {[%emt 00:00:32]} 15. Qxc1 {[%clk 00:36:44]} {[%emt
00:00:05]} Bd7 {[%clk 00:36:04]} {[%emt 00:00:41]} 16. Rd1 {[%clk 00:36:11]}
{[%emt 00:00:43]} Qc7 {[%clk 00:35:54]} {[%emt 00:00:19]} 17. Qe3 {[%clk
00:34:30]} {[%emt 00:01:51]} Bc6 {[%clk 00:34:18]} {[%emt 00:01:46]} 18. Rc1
{[%clk 00:31:33]} {[%emt 00:03:08]} Bxf3 {[%clk 00:33:13]} {[%emt 00:01:15]} 19.
Qxf3 {[%clk 00:31:25]} {[%emt 00:00:18]} Qc6 {[%clk 00:32:40]} {[%emt
00:00:43]} 20. Qe3 {[%clk 00:30:56]} {[%emt 00:00:39]} Rac8 {[%clk 00:31:47]}
{[%emt 00:01:02]} 21. Bf4 {[%clk 00:28:21]} {[%emt 00:02:46]} Rfd8 {[%clk
00:29:56]} {[%emt 00:02:01]} 22. Qg3 {[%clk 00:27:33]} {[%emt 00:00:58]} Nd5
{[%clk 00:27:54]} {[%emt 00:02:12]} 23. Bh6 {[%clk 00:26:22]} {[%emt 00:01:21]}
g6 {[%clk 00:27:15]} {[%emt 00:00:49]} 24. h4 {[%clk 00:25:40]} {[%emt
00:00:53]} Nxc3 {[%clk 00:26:44]} {[%emt 00:00:41]} 25. Rxc3 {[%clk 00:25:04]}
{[%emt 00:00:46]} Qe4 {[%clk 00:26:51]} {[%emt 00:00:03]} 26. h5 {[%clk
00:23:46]} {[%emt 00:01:29]} Bh4 {[%clk 00:26:30]} {[%emt 00:00:30]} 27. Rxc8
{[%clk 00:23:10]} {[%emt 00:00:46]} Qe1+ {[%clk 00:26:22]} {[%emt 00:00:18]} 28.
Kh2 {[%clk 00:23:07]} {[%emt 00:00:13]} Bxg3 {[%clk 00:26:29]} {[%emt
00:00:04]} 29. fxg3 {[%clk 00:22:52]} {[%emt 00:00:25]} Rxc8 {[%clk 00:26:34]}
{[%emt 00:00:05]} 30. hxg6 {[%clk 00:22:53]} {[%emt 00:00:08]} hxg6 {[%clk
00:26:39]} {[%emt 00:00:05]} 31. Bf4 {[%clk 00:22:51]} {[%emt 00:00:13]} g5
{[%clk 00:26:37]} {[%emt 00:00:12]} 32. Bxg5 {[%clk 00:22:40]} {[%emt
00:00:22]} Qxe5 {[%clk 00:26:41]} {[%emt 00:00:06]} 33. Bh4 {[%clk 00:22:36]}
{[%emt 00:00:14]} Qxb2 {[%clk 00:26:32]} {[%emt 00:00:19]} 34. Kh3 {[%clk
00:22:33]} {[%emt 00:00:14]} Rc1 {[%clk 00:26:27]} {[%emt 00:00:14]} 35. Kh2
{[%clk 00:22:15]} {[%emt 00:00:29]} Qb1 {[%clk 00:26:27]} {[%emt 00:00:09]} 36.
g4 {[%clk 00:22:11]} {[%emt 00:00:15]} Rh1 {[%clk 00:26:28]} {[%emt 00:00:09]}
37. Kg3 {[%clk 00:22:12]} {[%emt 00:00:10]} Qe1+ {[%clk 00:26:37]} {[%emt
00:00:01]} 38. Kf4 {[%clk 00:22:10]} {[%emt 00:00:12]} Qxh4 {[%clk 00:26:38]}
{[%emt 00:00:08]} 39. g3 {[%clk 00:22:10]} {[%emt 00:00:11]} Rf1+ {[%clk
00:26:45]} {[%emt 00:00:03]} 40. Ke4 {[%clk 00:22:15]} {[%emt 00:00:04]} Qxg4+
{[%clk 00:26:51]} {[%emt 00:00:05]} 41. Ke5 {[%clk 00:22:09]} {[%emt 00:00:16]}
Qxg3+ {[%clk 00:26:43]} {[%emt 00:00:19]} 42. Kd4 {[%clk 00:22:13]} {[%emt
00:00:06]} Rf5 {[%clk 00:26:43]} {[%emt 00:00:10]} 43. Kc4 {[%clk 00:22:14]}
{[%emt 00:00:08]} Qg4+ {[%clk 00:26:49]} {[%emt 00:00:04]} 44. Kc3 {[%clk
00:22:22]} {[%emt 00:00:02]} Rf3+ {[%clk 00:26:55]} {[%emt 00:00:04]} 45. Kb2
{[%clk 00:22:29]} {[%emt 00:00:03]} Qd4+ {[%clk 00:26:57]} {[%emt 00:00:08]} 46.
Ka3 {[%clk 00:22:24]} {[%emt 00:00:15]} Qc5+ {[%clk 00:26:57]} {[%emt
00:00:10]} 47. Kb2 {[%clk 00:22:23]} {[%emt 00:00:11]} Rf2+ {[%clk 00:27:02]}
{[%emt 00:00:05]} 48. Kb1 {[%clk 00:22:29]} {[%emt 00:00:03]} Qc3 {[%clk
00:27:05]} {[%emt 00:00:08]} 49. Bxe6 {[%clk 00:22:35]} {[%emt 00:00:05]} Qb2#
{[%clk 00:27:12]} {[%emt 00:00:03]} 0-1

[Event "Kadettallsvenskan 2018, sodra kvalet"]
[Site "Vegagatan 20, Gothenburg, Sweden"]
[Date "2018.04.14"]
[Round "3.2"]
[White "Olsson, William"]
[Black "Carlander-Strandang, Love"]
[Result "1-0"]
[TimeControl "45 minutes for the whole game + 10 seconds per move from move one."]
[WhiteFideId "1741721"]
[BlackFideId "1739689"]
[WhiteElo "2178"]
[BlackElo "1339"]

1. Nf3 {[%clk 00:45:18]} {[%emt 00:00:02]} d5 {[%clk 00:45:11]} {[%emt
00:00:09]} 2. d4 {[%clk 00:45:22]} {[%emt 00:00:06]} Bf5 {[%clk 00:45:15]}
{[%emt 00:00:06]} 3. e3 {[%clk 00:45:01]} {[%emt 00:00:31]} e6 {[%clk
00:44:55]} {[%emt 00:00:30]} 4. c4 {[%clk 00:45:07]} {[%emt 00:00:04]} Nf6
{[%clk 00:44:45]} {[%emt 00:00:19]} 5. Qb3 {[%clk 00:45:00]} {[%emt 00:00:17]}
b6 {[%clk 00:44:25]} {[%emt 00:00:31]} 6. cxd5 {[%clk 00:45:01]} {[%emt
00:00:08]} Qxd5 {[%clk 00:44:01]} {[%emt 00:00:34]} 7. Bc4 {[%clk 00:44:52]}
{[%emt 00:00:18]} Qd6 {[%clk 00:43:49]} {[%emt 00:00:22]} 8. Nc3 {[%clk
00:44:50]} {[%emt 00:00:13]} Nbd7 {[%clk 00:42:38]} {[%emt 00:01:20]} 9. O-O
{[%clk 00:40:51]} {[%emt 00:04:09]} a6 {[%clk 00:41:33]} {[%emt 00:01:16]} 10.
a4 {[%clk 00:40:45]} {[%emt 00:00:15]} Qb4 {[%clk 00:41:09]} {[%emt 00:00:34]}
11. Nh4 {[%clk 00:36:03]} {[%emt 00:04:50]} Qxb3 {[%clk 00:39:32]} {[%emt
00:01:49]} 12. Bxb3 {[%clk 00:36:08]} {[%emt 00:00:05]} Bg4 {[%clk 00:39:30]}
{[%emt 00:00:12]} 13. h3 {[%clk 00:35:07]} {[%emt 00:01:10]} Bh5 {[%clk
00:39:35]} {[%emt 00:00:05]} 14. e4 {[%clk 00:34:47]} {[%emt 00:00:29]} g5
{[%clk 00:38:21]} {[%emt 00:01:25]} 15. Bxg5 {[%clk 00:33:20]} {[%emt
00:01:37]} Bg7 {[%clk 00:37:50]} {[%emt 00:00:41]} 16. e5 {[%clk 00:33:01]}
{[%emt 00:00:28]} Ng8 {[%clk 00:37:34]} {[%emt 00:00:25]} 17. Ne4 {[%clk
00:32:01]} {[%emt 00:01:09]} Ne7 {[%clk 00:36:04]} {[%emt 00:01:42]} 18. Ng3
{[%clk 00:29:35]} {[%emt 00:02:35]} Rg8 {[%clk 00:35:28]} {[%emt 00:00:46]} 19.
Bxe7 {[%clk 00:29:12]} {[%emt 00:00:32]} Kxe7 {[%clk 00:34:49]} {[%emt
00:00:50]} 20. Nxh5 {[%clk 00:29:15]} {[%emt 00:00:07]} Bh6 {[%clk 00:34:44]}
{[%emt 00:00:16]} 21. f4 {[%clk 00:27:06]} {[%emt 00:02:20]} f6 {[%clk
00:33:34]} {[%emt 00:01:20]} 22. Nxf6 {[%clk 00:26:13]} {[%emt 00:01:02]} Nxf6
{[%clk 00:33:20]} {[%emt 00:00:24]} 23. exf6+ {[%clk 00:26:18]} {[%emt
00:00:05]} Kxf6 {[%clk 00:33:04]} {[%emt 00:00:26]} 24. Rae1 {[%clk 00:26:09]}
{[%emt 00:00:18]} Rge8 {[%clk 00:32:31]} {[%emt 00:00:44]} 25. f5 {[%clk
00:24:37]} {[%emt 00:01:42]} e5 {[%clk 00:32:02]} {[%emt 00:00:40]} 26. dxe5+
{[%clk 00:24:01]} {[%emt 00:00:46]} Rxe5 {[%clk 00:32:04]} {[%emt 00:00:07]} 27.
Rxe5 {[%clk 00:23:32]} {[%emt 00:00:39]} Kxe5 {[%clk 00:32:09]} {[%emt
00:00:06]} 28. f6 {[%clk 00:23:34]} {[%emt 00:00:08]} Rf8 {[%clk 00:32:10]}
{[%emt 00:00:10]} 29. f7 {[%clk 00:23:36]} {[%emt 00:00:07]} Kd6 {[%clk
00:31:39]} {[%emt 00:00:41]} 30. Rf6+ {[%clk 00:22:49]} {[%emt 00:00:57]} Ke7
{[%clk 00:31:29]} {[%emt 00:00:20]} 31. Rxh6 {[%clk 00:22:50]} {[%emt
00:00:09]} a5 {[%clk 00:30:55]} {[%emt 00:00:44]} 32. Rxh7 {[%clk 00:22:55]}
{[%emt 00:00:05]} c5 {[%clk 00:30:48]} {[%emt 00:00:16]} 33. Ng6+ {[%clk
00:23:00]} {[%emt 00:00:04]} 1-0

[Event "Kadettallsvenskan 2018, sodra kvalet"]
[Site "Vegagatan 20, Gothenburg, Sweden"]
[Date "2018.04.14"]
[Round "3.3"]
[White "Nabbing, Oscar"]
[Black "Torngren, Gustav"]
[Result "0-1"]
[TimeControl "45 minutes for the whole game + 10 seconds per move from move one."]
[WhiteFideId "1738313"]
[BlackFideId "1728970"]
[WhiteElo "1456"]
[BlackElo "1906"]

1. e4 {[%clk 00:45:18]} c5 {[%clk 00:45:11]} {[%emt 00:00:10]} 2. Nc3 {[%clk
00:45:04]} {[%emt 00:00:24]} b6 {[%clk 00:45:15]} {[%emt 00:00:06]} 3. f4
{[%clk 00:43:48]} {[%emt 00:01:25]} Bb7 {[%clk 00:44:56]} {[%emt 00:00:30]} 4.
Nf3 {[%clk 00:42:34]} {[%emt 00:01:24]} e6 {[%clk 00:44:51]} {[%emt 00:00:15]}
5. Bc4 {[%clk 00:42:33]} {[%emt 00:00:11]} d6 {[%clk 00:44:42]} {[%emt
00:00:18]} 6. d3 {[%clk 00:41:51]} {[%emt 00:00:53]} Nf6 {[%clk 00:44:41]}
{[%emt 00:00:11]} 7. O-O {[%clk 00:39:22]} {[%emt 00:02:39]} a6 {[%clk
00:44:34]} {[%emt 00:00:17]} 8. a3 {[%emt 00:01:15]} Be7 {[%clk 00:44:35]}
{[%emt 00:00:07]} 9. Qe1 {[%clk 00:36:12]} {[%emt 00:02:17]} O-O {[%clk
00:41:55]} {[%emt 00:02:49]} 10. e5 {[%clk 00:32:51]} {[%emt 00:03:32]} dxe5
{[%clk 00:41:48]} {[%emt 00:00:17]} 11. fxe5 {[%clk 00:32:50]} {[%emt
00:00:11]} Nd5 {[%clk 00:41:48]} {[%emt 00:00:10]} 12. Qg3 {[%clk 00:32:19]}
{[%emt 00:00:42]} Kh8 {[%clk 00:40:49]} {[%emt 00:01:08]} 13. d4 {[%clk
00:30:30]} {[%emt 00:01:59]} cxd4 {[%clk 00:40:36]} {[%emt 00:00:22]} 14. Nxd4
{[%clk 00:30:05]} {[%emt 00:00:36]} Bc5 {[%clk 00:40:28]} {[%emt 00:00:17]} 15.
Rd1 {[%clk 00:29:18]} {[%emt 00:00:57]} Nc6 {[%clk 00:39:26]} {[%emt 00:01:13]}
16. Nce2 {[%clk 00:26:15]} {[%emt 00:03:13]} b5 {[%clk 00:38:59]} {[%emt
00:00:36]} 17. Bxd5 {[%clk 00:26:15]} {[%emt 00:00:11]} Qxd5 {[%clk 00:38:53]}
{[%emt 00:00:16]} 18. c3 {[%clk 00:26:10]} {[%emt 00:00:16]} Qxe5 {[%clk
00:38:46]} {[%emt 00:00:16]} 19. Qxe5 {[%clk 00:25:21]} {[%emt 00:00:59]} Nxe5
{[%clk 00:38:54]} {[%emt 00:00:02]} 20. Bf4 {[%clk 00:24:54]} {[%emt 00:00:37]}
Ng6 {[%clk 00:38:42]} {[%emt 00:00:22]} 21. Be3 {[%clk 00:24:46]} {[%emt
00:00:18]} Rad8 {[%clk 00:37:19]} {[%emt 00:01:32]} 22. Kh1 {[%clk 00:22:41]}
{[%emt 00:02:15]} Nh4 {[%clk 00:33:53]} {[%emt 00:03:36]} 23. Nc2 {[%clk
00:20:08]} {[%emt 00:02:43]} Bxg2 {[%clk 00:33:03]} {[%emt 00:01:00]} 24. Kg1
{[%clk 00:19:20]} {[%emt 00:00:59]} Bxe3+ {[%clk 00:32:51]} {[%emt 00:00:21]}
25. Nxe3 {[%clk 00:19:04]} {[%emt 00:00:26]} Bf3 {[%clk 00:32:38]} {[%emt
00:00:22]} 26. Re1 {[%clk 00:18:32]} {[%emt 00:00:42]} Rd2 {[%clk 00:31:52]}
{[%emt 00:00:56]} 27. Nf4 {[%clk 00:17:12]} {[%emt 00:01:31]} Rxb2 {[%clk
00:31:13]} {[%emt 00:00:48]} 28. c4 {[%clk 00:16:13]} {[%emt 00:01:11]} Bc6
{[%clk 00:30:44]} {[%emt 00:00:38]} 29. Red1 {[%clk 00:15:00]} {[%emt
00:01:23]} Nf3+ {[%clk 00:30:41]} {[%emt 00:00:13]} 30. Kf1 {[%clk 00:14:51]}
{[%emt 00:00:19]} Nxh2+ {[%clk 00:30:49]} {[%emt 00:00:04]} 31. Kg1 {[%clk
00:14:40]} {[%emt 00:00:19]} Nf3+ {[%clk 00:30:57]} {[%emt 00:00:02]} 32. Kf1
{[%clk 00:14:44]} {[%emt 00:00:06]} Nd2+ {[%clk 00:30:41]} {[%emt 00:00:26]} 33.
Ke1 {[%clk 00:14:31]} {[%emt 00:00:24]} Nf3+ {[%clk 00:30:15]} {[%emt
00:00:35]} 34. Kf1 {[%clk 00:14:30]} {[%emt 00:00:12]} bxc4 {[%clk 00:30:20]}
{[%emt 00:00:05]} 35. Nxc4 {[%clk 00:14:06]} {[%emt 00:05:33]} Bb5 {[%clk
00:30:22]} {[%emt 00:00:07]} 36. Rdc1 {[%clk 00:13:42]} {[%emt 00:00:35]} Bxc4+
{[%clk 00:30:29]} {[%emt 00:00:03]} 37. Rxc4 {[%clk 00:13:34]} {[%emt
00:00:18]} Nd2+ {[%clk 00:30:37]} {[%emt 00:00:01]} 38. Ke1 {[%clk 00:13:32]}
{[%emt 00:00:11]} Nxc4 {[%clk 00:30:44]} {[%emt 00:00:03]} 39. Nd3 {[%clk
00:12:41]} {[%emt 00:01:01]} Rh2 {[%clk 00:30:42]} {[%emt 00:00:13]} 40. Nf2
{[%clk 00:12:37]} {[%emt 00:00:14]} Ne5 {[%clk 00:30:17]} {[%emt 00:00:34]} 41.
Ke2 {[%clk 00:11:51]} {[%emt 00:00:56]} Ng4 {[%clk 00:30:22]} {[%emt 00:00:05]}
42. Rf1 {[%clk 00:11:47]} {[%emt 00:00:14]} Rxf2+ {[%clk 00:30:29]} {[%emt
00:00:03]} 43. Rxf2 {[%clk 00:11:47]} {[%emt 00:00:09]} Nxf2 {[%clk 00:30:36]}
{[%emt 00:00:04]} 0-1

[Event "Kadettallsvenskan 2018, sodra kvalet"]
[Site "Vegagatan 20, Gothenburg, Sweden"]
[Date "2018.04.14"]
[Round "3.4"]
[White "Torngren, Alexander"]
[Black "Olofsson, Klara"]
[Result "0-1"]
[TimeControl "45 minutes for the whole game + 10 seconds per move from move one."]
[WhiteFideId "1728962"]
[BlackFideId "1745182"]
[WhiteElo "1214"]
[BlackElo "1221"]

1. e4 {[%clk 00:45:16]} {[%emt 00:00:03]} c5 {[%clk 00:45:13]} {[%emt
00:00:06]} 2. Nf3 {[%clk 00:45:19]} {[%emt 00:00:07]} Nc6 {[%clk 00:45:15]}
{[%emt 00:00:09]} 3. d4 {[%clk 00:45:15]} {[%emt 00:00:14]} cxd4 {[%clk
00:45:16]} {[%emt 00:00:08]} 4. Nxd4 {[%clk 00:45:21]} {[%emt 00:00:04]} Nf6
{[%clk 00:45:20]} {[%emt 00:00:07]} 5. Nc3 {[%clk 00:45:27]} {[%emt 00:00:03]}
e5 {[%clk 00:45:16]} {[%emt 00:00:14]} 6. Nf3 {[%clk 00:45:23]} {[%emt
00:00:13]} Bb4 {[%clk 00:45:14]} {[%emt 00:00:13]} 7. Bd2 {[%clk 00:44:04]}
{[%emt 00:01:24]} O-O {[%clk 00:44:14]} {[%emt 00:01:15]} 8. Bd3 {[%clk
00:43:13]} {[%emt 00:00:58]} d5 {[%clk 00:42:00]} {[%emt 00:02:27]} 9. O-O
{[%clk 00:40:37]} {[%emt 00:02:45]} Bxc3 {[%clk 00:41:14]} {[%emt 00:00:56]} 10.
bxc3 {[%clk 00:39:32]} {[%emt 00:01:15]} dxe4 {[%clk 00:41:15]} {[%emt
00:00:09]} 11. Be2 {[%clk 00:32:01]} {[%emt 00:07:41]} exf3 {[%clk 00:41:05]}
{[%emt 00:00:20]} 12. Bxf3 {[%clk 00:31:40]} {[%emt 00:00:31]} Bf5 {[%clk
00:40:01]} {[%emt 00:01:15]} 13. Re1 {[%clk 00:30:01]} {[%emt 00:01:46]} Re8
{[%clk 00:38:47]} {[%emt 00:01:27]} 14. g3 {[%clk 00:24:26]} {[%emt 00:05:45]}
Re6 {[%clk 00:37:52]} {[%emt 00:01:05]} 0-1

[Event "Kadettallsvenskan 2018, sodra kvalet"]
[Site "Vegagatan 20, Gothenburg, Sweden"]
[Date "2018.04.14"]
[Round "3.6"]
[White "Lindholm, Gustav"]
[Black "Szczepanowski, Tomasz"]
[Result "0-1"]
[TimeControl "45 minutes for the whole game + 10 seconds per move from move one."]
[WhiteFideId "1736515"]
[BlackFideId "21800286"]
[WhiteElo "1803"]
[BlackElo "1913"]

1. d4 {[%clk 00:45:17]} {[%emt 00:00:02]} Nf6 {[%clk 00:45:09]} {[%emt
00:00:11]} 2. c4 {[%clk 00:45:21]} {[%emt 00:00:07]} e5 {[%clk 00:45:15]}
{[%emt 00:00:04]} 3. dxe5 {[%clk 00:45:27]} {[%emt 00:00:04]} Ng4 {[%clk
00:45:23]} {[%emt 00:00:02]} 4. Bf4 {[%clk 00:45:25]} {[%emt 00:00:13]} Nc6
{[%clk 00:45:29]} {[%emt 00:00:05]} 5. Nf3 {[%clk 00:45:22]} {[%emt 00:00:13]}
Bb4+ {[%clk 00:45:34]} {[%emt 00:00:04]} 6. Nbd2 {[%clk 00:44:57]} {[%emt
00:00:35]} Qe7 {[%clk 00:45:39]} {[%emt 00:00:05]} 7. e3 {[%clk 00:43:46]}
{[%emt 00:01:21]} Ngxe5 {[%clk 00:45:38]} {[%emt 00:00:11]} 8. Nxe5 {[%clk
00:43:10]} {[%emt 00:00:46]} Nxe5 {[%clk 00:45:38]} {[%emt 00:00:11]} 9. a3
{[%clk 00:42:28]} {[%emt 00:00:51]} Bxd2+ {[%clk 00:45:29]} {[%emt 00:00:18]}
10. Qxd2 {[%clk 00:41:45]} {[%emt 00:00:55]} d6 {[%clk 00:45:06]} {[%emt
00:00:33]} 11. Be2 {[%clk 00:41:03]} {[%emt 00:00:51]} O-O {[%clk 00:44:58]}
{[%emt 00:00:19]} 12. O-O {[%clk 00:40:02]} {[%emt 00:01:10]} b6 {[%clk
00:44:06]} {[%emt 00:01:03]} 13. Rad1 {[%clk 00:37:34]} {[%emt 00:02:38]} Bb7
{[%clk 00:43:50]} {[%emt 00:00:26]} 14. f3 {[%clk 00:36:19]} {[%emt 00:01:25]}
Rae8 {[%clk 00:43:15]} {[%emt 00:00:44]} 15. Qc2 {[%clk 00:35:25]} {[%emt
00:01:03]} Ng6 {[%clk 00:43:10]} {[%emt 00:00:17]} 16. Bd3 {[%clk 00:32:05]}
{[%emt 00:03:31]} Nxf4 {[%clk 00:42:33]} {[%emt 00:00:47]} 17. exf4 {[%clk
00:31:33]} {[%emt 00:00:41]} Qe3+ {[%clk 00:42:32]} {[%emt 00:00:11]} 18. Kh1
{[%clk 00:31:12]} {[%emt 00:00:29]} Qxf4 {[%clk 00:42:35]} {[%emt 00:00:10]} 19.
Bxh7+ {[%clk 00:30:39]} {[%emt 00:00:43]} Kh8 {[%clk 00:42:42]} {[%emt
00:00:02]} 20. Bf5 {[%clk 00:28:43]} {[%emt 00:02:04]} Re5 {[%clk 00:42:26]}
{[%emt 00:00:27]} 21. Bh3 {[%clk 00:26:51]} {[%emt 00:02:03]} Rfe8 {[%clk
00:42:23]} {[%emt 00:00:13]} 22. Qc3 {[%clk 00:24:20]} {[%emt 00:02:39]} Re2
{[%clk 00:40:46]} {[%emt 00:01:49]} 23. Rd4 {[%clk 00:20:17]} {[%emt 00:04:13]}
Rf2 {[%clk 00:36:20]} {[%emt 00:04:36]} 24. Rg1 {[%clk 00:16:36]} {[%emt
00:03:52]} Qh6 {[%clk 00:35:51]} {[%emt 00:00:38]} 25. Rd3 {[%clk 00:13:24]}
{[%emt 00:03:22]} Ree2 {[%clk 00:34:54]} {[%emt 00:01:07]} 26. Re1 {[%clk
00:11:09]} {[%emt 00:02:25]} Bxf3 {[%clk 00:33:29]} {[%emt 00:01:35]} 27. Rxf3
{[%clk 00:08:06]} {[%emt 00:03:13]} Rxf3 {[%clk 00:33:29]} {[%emt 00:00:11]} 28.
Qc1 {[%clk 00:03:33]} {[%emt 00:04:42]} Qxc1 {[%clk 00:32:39]} {[%emt
00:01:01]} 29. Rxc1 {[%clk 00:03:34]} {[%emt 00:00:08]} Rfe3 {[%clk 00:32:42]}
{[%emt 00:00:08]} 30. Kg1 {[%clk 00:03:30]} {[%emt 00:00:15]} Re1+ {[%clk
00:32:42]} {[%emt 00:00:09]} 31. Rxe1 {[%clk 00:03:33]} {[%emt 00:00:07]} Rxe1+
{[%clk 00:32:48]} {[%emt 00:00:04]} 32. Kf2 {[%clk 00:03:38]} {[%emt 00:00:05]}
Rb1 {[%clk 00:32:55]} {[%emt 00:00:03]} 0-1

[Event "Kadettallsvenskan 2018, sodra kvalet"]
[Site "Vegagatan 20, Gothenburg, Sweden"]
[Date "2018.04.15"]
[Round "4.1"]
[White "Lindholm, Gustav"]
[Black "Nilsson, Kajsa"]
[Result "1-0"]
[TimeControl "45 minutes for the whole game + 10 seconds per move from move one."]
[WhiteFideId "1736515"]
[BlackFideId "1725157"]
[WhiteElo "1803"]
[BlackElo "1693"]

1. d4 {[%clk 00:45:13]} d5 {[%clk 00:45:12]} 2. c4 {[%clk 00:45:23]} {[%emt
14:16:25]} e6 {[%clk 00:45:05]} 3. Nc3 {[%clk 00:45:24]} {[%emt 00:00:19]} Be7
{[%clk 00:44:58]} 4. Nf3 {[%clk 00:44:54]} {[%emt 00:00:55]} Nf6 {[%clk
00:44:52]} 5. Bg5 {[%clk 00:44:16]} {[%emt 00:01:06]} O-O {[%clk 00:44:00]} 6.
e3 {[%clk 00:43:46]} {[%emt 00:01:41]} Nbd7 {[%clk 00:43:07]} 7. Qc2 {[%clk
00:42:51]} {[%emt 00:02:08]} h6 {[%clk 00:42:11]} 8. Bh4 {[%clk 00:41:58]}
{[%emt 00:02:09]} c6 {[%clk 00:35:15]} 9. Bd3 {[%clk 00:40:46]} {[%emt
00:08:29]} dxc4 {[%clk 00:34:36]} 10. Bxc4 {[%clk 00:40:41]} {[%emt 00:01:03]}
b5 {[%clk 00:34:23]} 11. Bd3 {[%clk 00:40:11]} {[%emt 00:01:03]} Bb7 {[%clk
00:34:16]} 12. O-O {[%clk 00:39:28]} {[%emt 00:01:09]} a6 {[%clk 00:34:00]} 13.
Rfd1 {[%clk 00:37:46]} {[%emt 00:02:19]} Re8 {[%clk 00:31:32]} 14. Rac1 {[%clk
00:35:14]} {[%emt 00:05:20]} Qb6 {[%clk 00:30:38]} 15. Ne4 {[%clk 00:31:02]}
{[%emt 00:10:50]} Rac8 {[%clk 00:23:51]} 16. Nc5 {[%clk 00:28:03]} {[%emt
00:05:02]} Ba8 {[%clk 00:22:04]} 17. Ne5 {[%clk 00:26:39]} {[%emt 00:03:31]}
Nd5 {[%clk 00:18:29]} 18. Bh7+ {[%clk 00:26:27]} {[%emt 00:04:08]} Kf8 19.
Nexd7# {[%clk 00:26:23]} 1-0